bitfinex-derivatives/quotes_SOLF0:USTF0_20250529
["timestamp","ask_amount","ask_price","bid_price","bid_amount"]
[1748501059205,0.03929935,172.44,172.4,0.03664644]
[1748501059206,0.03929935,172.44,172.42,5.7975]
[1748501059411,0.03929935,172.44,172.4,0.03664644]
[1748501060614,5.83639935,172.44,172.4,0.03664644]
[1748501060814,0.03929935,172.44,172.4,0.03664644]
[1748501061315,0.03929935,172.44,172.41,5.798]
[1748501062518,0.03929935,172.44,172.42,5.7976]
[1748501063118,0.03929935,172.44,172.43,5.7973]
[1748501097136,0.03929935,172.44,172.43,9.02455611]
[1748501097339,0.03929935,172.44,172.43,5.7973]
[1748501102740,0.03929935,172.44,172.42,5.7976]
[1748501104640,0.03929935,172.44,172.43,5.7973]
[1748501111641,9.935e-05,172.44,172.43,5.7973]
[1748501111837,9.935e-05,172.44,172.43,9.02455611]
[1748501112936,9.935e-05,172.44,172.43,38.78455611]
[1748501114143,29.74,172.53,172.5,5.7949]
[1748501115248,29.7789318,172.53,172.5,5.83631104]
[1748501115443,35.5729318,172.53,172.5,0.04141104]
[1748501115949,5.7944,172.52,172.5,0.04141104]
[1748501117252,5.7947,172.51,172.5,0.04141104]
[1748501125653,5.7944,172.52,172.5,0.04141104]
[1748501128557,35.5730318,172.53,172.5,0.04141104]
[1748501130363,5.7943,172.52,172.5,0.04141104]
[1748501131467,5.7947,172.51,172.5,0.04141104]
[1748501131868,29.7789318,172.53,172.5,0.04141104]
[1748501132167,5.7943,172.52,172.5,0.04141104]
[1748501137375,35.5730318,172.53,172.5,0.04141104]
[1748501138779,0.0389318,172.53,172.5,3.26866715]
[1748501139278,0.0389318,172.53,172.52,5.7943]
[1748501139575,0.0389318,172.53,172.52,9.02155611]
[1748501147572,5.7926,172.58,172.54,5.7935]
[1748501147975,35.5121,172.59,172.55,5.793]
[1748501149576,35.55259908,172.59,172.55,5.83408499]
[1748501149969,35.55259908,172.59,172.56,5.7929]
[1748501150173,0.04049908,172.59,172.55,0.04108499]
[1748501152071,5.7928,172.57,172.55,0.04108499]
[1748501154582,5.793,172.56,172.55,0.04108499]
[1748501156781,5.7927,172.57,172.55,0.04108499]
[1748501162587,5.793,172.56,172.55,0.04108499]
[1748501163086,5.7926,172.58,172.55,0.04108499]
[1748501163286,0.04049908,172.59,172.55,0.04108499]
[1748501163483,5.7929,172.57,172.55,0.04108499]
[1748501164289,5.7929,172.57,172.55,5.83438499]
[1748501164988,5.7924,172.58,172.55,5.83438499]
[1748501165490,5.83259908,172.59,172.55,5.83438499]
[1748501166093,0.04049908,172.59,172.56,5.793]
[1748501166290,0.04049908,172.59,172.55,0.04108499]
[1748501167491,32.90725611,172.58,172.55,0.04108499]
[1748501167694,5.7926,172.57,172.55,0.04108499]
[1748501169993,32.90725611,172.58,172.55,0.04108499]
[1748501170194,29.68,172.58,172.55,0.04108499]
[1748501170591,0.04049908,172.59,172.57,3.22725611]
[1748501171197,0.04049908,172.59,172.58,5.7923]
[1748501173402,0.04049908,172.59,172.58,9.01955611]
[1748501176405,0.04049908,172.59,172.58,5.7923]
[1748501185805,0.04049908,172.59,172.58,9.01955611]
[1748501186009,29.68,172.65,172.62,5.7908]
[1748501187111,29.68,172.65,172.62,5.83361453]
[1748501190015,29.68,172.65,172.62,0.04281453]
[1748501191115,29.68,172.65,172.62,5.83381453]
[1748501192223,5.22073276,172.67,172.62,0.04281453]
[1748501192426,5.22073276,172.67,172.62,3.27007064]
[1748501192715,5.22073276,172.67,172.65,5.7898]
[1748501193116,5.22073276,172.67,172.62,3.27007064]
[1748501193715,5.22073276,172.67,172.64,3.22725611]
[1748501194318,29.64,172.71,172.66,3.22725611]
[1748501194522,29.64,172.71,172.67,0.04097063]
[1748501194719,29.64,172.71,172.68,5.7889]
[1748501196627,29.64,172.71,172.67,5.83017063]
[1748501197321,29.64,172.71,172.68,5.7889]
[1748501197524,29.64,172.71,172.67,0.04097063]
[1748501198218,29.64,172.71,172.67,5.83017063]
[1748501199324,29.64,172.71,172.68,5.7889]
[1748501199627,29.64,172.71,172.67,0.04097063]
[1748501199817,29.64,172.71,172.67,5.83017063]
[1748501201027,35.428,172.71,172.67,5.83017063]
[1748501201419,29.64,172.71,172.67,0.04097063]
[1748501202328,31.6236,172.71,172.67,0.04097063]
[1748501203124,37.4117,172.71,172.67,0.04097063]
[1748501203421,37.4117,172.71,172.67,5.83017063]
[1748501203618,5.789,172.68,172.67,0.04097063]
[1748501204128,3.22725611,172.69,172.6,29.64]
[1748501204331,5.7896,172.67,172.6,32.86725611]
[1748501204624,5.7896,172.67,172.62,5.7907]
[1748501204828,3.22725611,172.69,172.6,32.86725611]
[1748501205030,0.0370694,172.66,172.63,0.04169575]
[1748501207930,0.0370694,172.66,172.63,5.83229575]
[1748501209029,0.0370694,172.66,172.65,5.79]
[1748501221045,0.0370694,172.66,172.63,0.04169575]
[1748501221245,29.6,172.73,172.63,0.04169575]
[1748501221439,29.6,172.73,172.61,5.873]
[1748501221745,29.6,172.73,172.7,5.7881]
[1748501222246,29.6,172.73,172.71,5.7879]
[1748501223545,29.6,172.73,172.72,5.7876]
[1748501224539,29.6,172.73,172.71,5.7879]
[1748501226045,29.6,172.73,172.7,0.03810016]
[1748501226046,29.6,172.73,172.72,5.7876]
[1748501226835,29.6,172.73,172.71,5.7879]
[1748501227846,29.6,172.73,172.72,5.7876]
[1748501228241,29.6,172.73,172.7,0.03810016]
[1748501228842,29.6,172.73,172.71,5.7877]
[1748501229948,29.6,172.73,172.72,5.7876]
[1748501232552,29.6,172.73,172.71,5.7878]
[1748501235448,35.3873,172.73,172.7,0.03810016]
[1748501235648,3.21768439,172.72,172.57,11.5853]
[1748501235852,3.21768439,172.68,172.61,9.09068439]
[1748501236053,9.00698439,172.68,172.61,5.873]
[1748501236854,0.04449451,172.66,172.63,0.03895918]
[1748501237249,0.04449451,172.66,172.64,5.7901]
[1748501238958,0.04449451,172.66,172.65,5.79]
[1748501247662,0.04449451,172.66,172.63,5.82955918]
[1748501250663,5.83419451,172.66,172.63,5.82955918]
[1748501250863,0.04449451,172.66,172.63,0.03895918]
[1748501251271,5.83419451,172.66,172.63,0.03895918]
[1748501252465,0.04449451,172.66,172.63,0.03895918]
[1748501252862,0.04449451,172.66,172.63,5.82935918]
[1748501254770,0.04449451,172.66,172.64,5.7901]
[1748501254971,0.04449451,172.66,172.63,0.03895918]
[1748501255968,0.04449451,172.66,172.65,5.79]
[1748501257370,0.04449451,172.66,172.64,5.7902]
[1748501259877,0.04449451,172.66,172.65,5.79]
[1748501278687,0.04449451,172.66,172.64,5.7902]
[1748501283693,5.83429451,172.66,172.63,5.82955918]
[1748501284496,0.04449451,172.66,172.63,5.82955918]
[1748501285591,0.04449451,172.66,172.64,5.7903]
[1748501291001,0.04449451,172.66,172.65,5.79]
[1748501292297,0.04449451,172.66,172.64,5.7902]
[1748501292499,0.04449451,172.66,172.63,0.03895918]
[1748501293394,0.04449451,172.66,172.64,5.7903]
[1748501298400,0.04449451,172.66,172.65,5.79]
[1748501305603,29.56,172.7,172.69,5.7887]
[1748501307506,38.5673209,172.73,172.69,5.7887]
[1748501307704,5.7877,172.72,172.69,5.7887]
[1748501308303,38.5671209,172.73,172.69,5.7887]
[1748501314620,38.5671209,172.73,172.7,5.7883]
[1748501315022,38.5671209,172.73,172.68,0.03818578]
[1748501315221,38.5671209,172.73,172.69,5.7886]
[1748501317521,3.2197209,172.71,172.68,0.03818578]
[1748501317722,3.2197209,172.69,172.68,0.03818578]
[1748501317922,32.7597209,172.69,172.68,0.03818578]
[1748501318124,38.5484209,172.69,172.68,0.03818578]
[1748501318623,38.5484209,172.69,172.68,0.00746012]
[1748501322622,5.7895,172.67,172.63,5.7907]
[1748501322823,9.0092209,172.67,172.63,5.7907]
[1748501323624,9.0092209,172.67,172.63,5.8331661]
[1748501324832,9.0092209,172.67,172.64,5.7904]
[1748501325628,9.0092209,172.67,172.63,5.8330661]
[1748501328134,0.03583519,172.7,172.65,3.2197209]
[1748501329036,0.03583519,172.7,172.64,3.9875]
[1748501331333,0.03583519,172.7,172.67,5.7893]
[1748501331533,29.57583519,172.7,172.67,5.8323467]
[1748501334534,29.57583519,172.7,172.68,5.789]
[1748501334933,29.57583519,172.7,172.67,0.0430467]
[1748501335334,3.2197209,172.69,172.67,0.0430467]
[1748501336025,29.57583519,172.7,172.67,0.0430467]
[1748501336236,0.03583519,172.7,172.67,0.0430467]
[1748501337232,0.03583519,172.7,172.68,5.7887]
[1748501340036,0.03583519,172.7,172.67,0.0430467]
[1748501341039,0.03583519,172.7,172.68,5.7888]
[1748501346039,0.03583519,172.7,172.69,5.7887]
[1748501352043,0.03583519,172.7,172.68,5.7889]
[1748501353642,0.03583519,172.7,172.67,5.8323467]
[1748501354042,3.2197209,172.69,172.67,0.0430467]
[1748501357050,0.03583519,172.7,172.67,5.8324467]
[1748501357252,3.25555609,172.7,172.67,0.0430467]
[1748501357646,0.03583519,172.7,172.67,0.0430467]
[1748501358153,0.03583519,172.7,172.69,5.7887]
[1748501371858,0.03583519,172.7,172.67,0.0430467]
[1748501372464,3.2197209,172.69,172.67,0.0430467]
[1748501373161,3.2197209,172.69,172.67,5.8323467]
[1748501375062,32.73555609,172.7,172.67,5.8323467]
[1748501379469,32.73555609,172.7,172.68,5.789]
[1748501379975,0.03583519,172.7,172.69,5.7887]
[1748501390571,0.03583519,172.7,172.68,5.789]
[1748501400281,0.03583519,172.7,172.69,5.7887]
[1748501402983,0.03583519,172.7,172.68,5.7889]
[1748501404186,0.03583519,172.7,172.69,5.7887]
[1748501405982,17.4,172.87,172.72,5.7877]
[1748501406294,3.21658418,172.76,172.67,3.21658418]
[1748501406483,3.21658418,172.76,172.72,5.7874]
[1748501407081,3.21658418,172.76,172.72,5.8261028]
[1748501407989,9.00298418,172.76,172.72,5.8261028]
[1748501408284,38.44298418,172.76,172.72,5.8261028]
[1748501409788,32.65658418,172.76,172.73,5.7873]
[1748501417191,38.44298418,172.76,172.72,5.8263028]
[1748501419494,29.44,172.8,172.72,0.0387028]
[1748501419698,3.21658418,172.78,172.72,0.0387028]
[1748501419899,3.21658418,172.78,172.75,5.7867]
[1748501420399,29.44,172.8,172.76,5.7863]
[1748501420400,35.2252,172.8,172.76,5.7863]
[1748501420600,3.21658418,172.78,172.76,5.82692606]
[1748501425602,3.21658418,172.79,172.76,0.04062606]
[1748501427402,3.21658418,172.79,172.77,5.786]
[1748501427707,29.44,172.8,172.77,5.786]
[1748501427911,32.65658418,172.8,172.77,5.786]
[1748501428708,32.65658418,172.8,172.78,5.7856]
[1748501429210,29.44,172.8,172.78,5.7856]
[1748501429408,32.65658418,172.8,172.78,5.7856]
[1748501429599,32.65658418,172.8,172.79,5.7853]
[1748501429806,29.44,172.8,172.79,5.7853]
[1748501431206,3.21658418,172.82,172.76,0.04062606]
[1748501431207,3.21658418,172.82,172.8,5.785]
[1748501431411,29.4,172.83,172.76,0.04062606]
[1748501431812,29.4,172.83,172.76,3.25721024]
[1748501432408,29.4,172.83,172.82,5.7843]
[1748501432709,29.4,172.83,172.81,0.0417977]
[1748501433206,5.7837,172.84,172.81,5.8262977]
[1748501436015,5.7834,172.85,172.81,5.8262977]
[1748501436220,29.4,172.86,172.82,5.7843]
[1748501436623,35.1832,172.86,172.82,5.7843]
[1748501438023,29.4,172.86,172.82,5.7843]
[1748501439924,35.183,172.86,172.82,5.7843]
[1748501441126,5.7834,172.85,172.81,5.8262977]
[1748501441416,29.4,172.86,172.81,5.8262977]
[1748501441813,35.1832,172.86,172.82,5.7843]
[1748501442016,5.7832,172.86,172.82,5.7843]
[1748501443224,8.99938418,172.87,172.82,5.7843]
[1748501444419,8.99938418,172.87,172.83,5.784]
[1748501446022,8.99938418,172.87,172.81,0.0417977]
[1748501446322,32.61658418,172.88,172.84,5.7834]
[1748501446524,32.61658418,172.88,172.81,0.0417977]
[1748501447825,5.7829,172.87,172.83,5.7839]
[1748501448026,32.61658418,172.88,172.83,5.7839]
[1748501448228,32.61658418,172.88,172.81,0.0417977]
[1748501448523,5.783,172.86,172.82,5.7841]
[1748501448932,5.783,172.86,172.81,0.0417977]
[1748501448933,3.21658418,172.86,172.81,0.0417977]
[1748501449119,5.7836,172.85,172.81,5.8263977]
[1748501450024,5.7839,172.84,172.81,0.0417977]
[1748501450229,9.00048418,172.84,172.81,0.0417977]
[1748501450631,3.21658418,172.84,172.81,5.8263977]
[1748501450826,3.21658418,172.84,172.81,0.0417977]
[1748501451531,9.00038418,172.84,172.81,0.0417977]
[1748501451931,3.21658418,172.84,172.81,0.0417977]
[1748501452135,5.7842,172.83,172.81,0.0417977]
[1748501455634,38.40038418,172.84,172.81,0.0417977]
[1748501455839,32.61658418,172.84,172.81,0.0417977]
[1748501456423,5.7841,172.83,172.81,0.0417977]
[1748501461440,29.4,172.84,172.81,0.0417977]
[1748501461632,32.61658418,172.84,172.81,0.0417977]
[1748501462938,32.61658418,172.84,172.81,5.8263977]
[1748501463535,32.61658418,172.84,172.81,0.0417977]
[1748501466646,38.40048418,172.84,172.81,0.0417977]
[1748501467049,3.21658418,172.82,172.81,0.0417977]
[1748501467244,9.00088418,172.82,172.81,0.0417977]
[1748501468641,5.785,172.8,172.75,2.0322]
[1748501468844,3.21658418,172.8,172.75,5.7864]
[1748501469443,5.7856,172.79,172.75,5.7864]
[1748501469647,5.82317615,172.79,172.75,5.82957594]
[1748501470449,5.82317615,172.79,172.75,0.04317594]
[1748501470846,5.7857,172.78,172.75,0.04317594]
[1748501471053,3.21658418,172.76,172.75,0.04317594]
[1748501471354,9.00298418,172.76,172.75,0.04317594]
[1748501471553,3.21658418,172.76,172.71,5.7878]
[1748501472251,9.00318418,172.76,172.71,5.7878]
[1748501472456,0.04299191,172.75,172.72,0.03988089]
[1748501472648,9.00378418,172.74,172.72,0.03988089]
[1748501473150,3.21658418,172.74,172.72,0.03988089]
[1748501474357,9.00378418,172.74,172.72,0.03988089]
[1748501475257,3.21658418,172.74,172.72,0.03988089]
[1748501476660,5.7874,172.73,172.72,0.03988089]
[1748501477955,9.00368418,172.74,172.72,0.03988089]
[1748501479551,3.21658418,172.74,172.65,29.36]
[1748501479755,3.21658418,172.71,172.62,36.65818418]
[1748501480259,3.21658418,172.71,172.67,5.7891]
[1748501480653,3.25501209,172.71,172.67,5.82770771]
[1748501480855,9.04311209,172.71,172.67,0.03860771]
[1748501482057,5.7885,172.7,172.67,0.03860771]
[1748501483757,9.04311209,172.71,172.67,0.03860771]
[1748501483961,9.04311209,172.71,172.67,5.82790771]
[1748501484457,3.25501209,172.71,172.67,5.82790771]
[1748501485964,9.04311209,172.71,172.67,5.82790771]
[1748501487764,5.7884,172.7,172.67,5.82790771]
[1748501489065,9.04311209,172.71,172.67,5.82790771]
[1748501491469,9.04311209,172.71,172.68,5.789]
[1748501494165,9.04311209,172.71,172.67,5.82780771]
[1748501494368,3.25501209,172.71,172.67,0.03860771]
[1748501495065,3.25501209,172.71,172.69,5.7885]
[1748501499576,3.25501209,172.71,172.7,5.7884]
[1748501499879,0.03842791,172.71,172.7,5.7884]
[1748501500377,29.36,172.75,172.68,1.9789]
[1748501500674,29.36,172.75,172.69,4.0373]
[1748501500880,29.36,172.75,172.73,5.7871]
[1748501502878,29.36,172.75,172.72,5.82675177]
[1748501505983,32.57658418,172.75,172.72,5.82675177]
[1748501508684,32.57658418,172.75,172.72,0.03915177]
[1748501509282,32.57658418,172.75,172.73,5.7871]
[1748501509982,32.57658418,172.75,172.74,5.787]
[1748501511583,3.21658418,172.75,172.74,5.787]
[1748501511986,0.03660152,172.76,172.74,5.787]
[1748501512183,0.03660152,172.76,172.75,5.7867]
[1748501513687,0.03660152,172.76,172.74,5.7869]
[1748501518388,0.03660152,172.76,172.73,5.7872]
[1748501519093,0.03660152,172.76,172.74,5.787]
[1748501519893,0.03660152,172.76,172.73,5.7873]
[1748501523391,0.03660152,172.76,172.72,0.03915177]
[1748501523595,0.03660152,172.76,172.72,5.82675177]
[1748501524497,0.03660152,172.76,172.73,5.7873]
[1748501530101,0.03660152,172.76,172.74,5.787]
[1748501531603,0.03660152,172.76,172.73,5.7872]
[1748501532505,5.82300152,172.76,172.72,5.82675177]
[1748501537598,5.7867,172.75,172.72,0.03915177]
[1748501538303,5.82300152,172.76,172.72,5.82685177]
[1748501540702,3.21658418,172.75,172.72,0.03915177]
[1748501541212,5.7872,172.74,172.72,0.03915177]
[1748501543206,3.21658418,172.75,172.72,0.03915177]
[1748501543410,32.53658418,172.75,172.72,0.03915177]
[1748501544102,38.32328418,172.75,172.72,0.03915177]
[1748501545913,32.53658418,172.75,172.72,0.03915177]
[1748501546513,5.7872,172.74,172.72,0.03915177]
[1748501557326,9.00398418,172.73,172.72,0.03915177]
[1748501564029,5.7874,172.73,172.72,0.03915177]
[1748501608053,35.0271,172.74,172.72,0.03915177]
[1748501609059,29.24,172.74,172.72,0.03915177]
[1748501610861,29.24,172.74,172.72,5.82685177]
[1748501613264,29.24,172.74,172.72,0.03915177]
[1748501613465,35.0271,172.74,172.72,0.03915177]
[1748501617968,38.24434094,172.74,172.72,0.03915177]
[1748501622274,38.24424094,172.74,172.72,0.03915177]
[1748501625078,5.7874,172.73,172.72,0.03915177]
[1748501629983,38.24434094,172.74,172.72,0.03915177]
[1748501630979,5.7874,172.73,172.72,0.03915177]
[1748501631176,32.45724094,172.74,172.62,29.18]
[1748501631379,3.21724094,172.7,172.63,2.0375]
[1748501631582,32.39724094,172.7,172.63,2.0375]
[1748501631882,3.21724094,172.68,172.63,2.0375]
[1748501632278,3.26039369,172.68,172.64,4.11496332]
[1748501632875,9.04949369,172.68,172.64,4.11496332]
[1748501634077,9.04949369,172.68,172.64,9.90506332]
[1748501634278,3.26039369,172.68,172.64,9.90506332]
[1748501635385,3.26039369,172.68,172.64,0.04366332]
[1748501635787,3.21724094,172.66,172.64,0.04366332]
[1748501637178,9.00704094,172.66,172.64,0.04366332]
[1748501638279,3.21724094,172.66,172.64,0.04366332]
[1748501639082,9.00694094,172.66,172.64,0.04366332]
[1748501639685,3.21724094,172.66,172.64,0.04366332]
[1748501640380,9.00694094,172.66,172.64,0.04366332]
[1748501643288,5.79,172.65,172.64,0.04366332]
[1748501643688,3.21724094,172.66,172.64,0.04366332]
[1748501644089,9.00704094,172.66,172.64,0.04366332]
[1748501647088,5.79,172.65,172.64,0.04366332]
[1748501648989,5.7905,172.64,172.6,5.7916]
[1748501649188,9.00774094,172.64,172.6,5.7916]
[1748501649991,9.04843686,172.64,172.6,5.830738]
[1748501654298,5.7909,172.63,172.6,0.039138]
[1748501654800,3.25793686,172.64,172.6,0.039138]
[1748501655493,9.04853686,172.64,172.6,0.039138]
[1748501655694,3.25793686,172.64,172.6,0.039138]
[1748501656399,5.7907,172.63,172.6,0.039138]
[1748501658496,5.7911,172.62,172.6,0.039138]
[1748501659902,5.7908,172.63,172.6,0.039138]
[1748501660198,0.04069592,172.64,172.6,0.039138]
[1748501660403,0.04069592,172.64,172.6,3.25637894]
[1748501661001,0.04069592,172.64,172.63,5.7907]
[1748501663701,3.25793686,172.64,172.6,0.039138]
[1748501664196,5.7912,172.62,172.6,0.039138]
[1748501665905,9.00844094,172.62,172.6,0.039138]
[1748501666508,5.7914,172.61,172.6,0.039138]
[1748501673513,5.791,172.63,172.6,0.039138]
[1748501673715,38.16824094,172.63,172.6,0.039138]
[1748501674018,29.16,172.63,172.6,0.039138]
[1748501674209,0.04069592,172.64,172.6,0.039138]
[1748501676213,0.04069592,172.64,172.63,5.7907]
[1748501677415,0.04069592,172.64,172.6,0.039138]
[1748501678916,0.04069592,172.64,172.63,5.7907]
[1748501687027,0.04069592,172.64,172.6,0.039138]
[1748501687730,0.04069592,172.64,172.62,5.7908]
[1748501688623,0.04069592,172.64,172.6,0.039138]
[1748501689526,5.83109592,172.64,172.6,5.830638]
[1748501690326,0.04069592,172.64,172.61,5.7913]
[1748501690625,0.04069592,172.64,172.6,0.039138]
[1748501691026,5.83129592,172.64,172.6,5.830838]
[1748501692031,5.83129592,172.64,172.6,0.039138]
[1748501692233,5.7907,172.63,172.6,0.039138]
[1748501693734,5.7907,172.63,172.6,5.830838]
[1748501693933,5.83119592,172.64,172.6,5.830838]
[1748501696140,5.7908,172.63,172.6,0.039138]
[1748501697842,5.7908,172.63,172.6,5.830838]
[1748501699642,5.7908,172.63,172.6,0.039138]
[1748501704936,5.7911,172.62,172.6,0.039138]
[1748501705145,3.26169293,172.64,172.6,0.039138]
[1748501705536,5.7909,172.63,172.6,0.039138]
[1748501707142,3.26169293,172.64,172.6,0.039138]
[1748501708444,5.791,172.63,172.6,0.039138]
[1748501709248,5.7911,172.62,172.6,0.039138]
[1748501710644,3.22099701,172.62,172.53,31.0767]
[1748501711343,3.22099701,172.62,172.57,5.7927]
[1748501711545,5.7916,172.61,172.57,5.7927]
[1748501711737,5.82915627,172.61,172.57,5.83622733]
[1748501712141,5.7918,172.6,172.57,0.04352733]
[1748501712346,0.03755627,172.61,172.57,0.04352733]
[1748501712851,3.22099701,172.6,172.57,0.04352733]
[1748501713047,0.03755627,172.61,172.57,0.04352733]
[1748501713947,0.03755627,172.61,172.58,5.7922]
[1748501719654,0.03755627,172.61,172.57,0.04352733]
[1748501720754,0.03755627,172.61,172.58,5.7923]
[1748501721053,0.03755627,172.61,172.57,0.04352733]
[1748501721253,0.03755627,172.61,172.58,5.7923]
[1748501722854,5.82895627,172.61,172.58,5.7923]
[1748501725758,0.03755627,172.61,172.59,5.792]
[1748501725962,0.03755627,172.61,172.57,0.04352733]
[1748501726361,5.82895627,172.61,172.58,5.7921]
[1748501726762,5.7917,172.6,172.57,5.83612733]
[1748501726962,0.03755627,172.61,172.57,5.83612733]
[1748501727261,5.82905627,172.61,172.57,5.83612733]
[1748501727562,0.03755627,172.61,172.57,5.83612733]
[1748501728061,5.7918,172.6,172.57,5.83612733]
[1748501728362,0.03755627,172.61,172.57,5.83612733]
[1748501728663,5.82915627,172.61,172.58,5.7922]
[1748501729564,5.7918,172.6,172.57,5.83622733]
[1748501730061,0.03755627,172.61,172.57,5.83622733]
[1748501730366,0.03755627,172.61,172.58,5.7924]
[1748501730762,5.82895627,172.61,172.58,5.7924]
[1748501732269,5.82895627,172.61,172.57,5.83612733]
[1748501732470,5.7918,172.6,172.57,5.83612733]
[1748501734166,5.7918,172.6,172.57,0.04352733]
[1748501735270,5.7918,172.6,172.57,5.83622733]
[1748501737872,0.03755627,172.61,172.57,5.83622733]
[1748501738676,5.82925627,172.61,172.57,5.83622733]
[1748501739479,5.7918,172.6,172.57,5.83622733]
[1748501739780,5.7918,172.6,172.57,0.04352733]
[1748501741279,3.22099701,172.6,172.57,0.04352733]
[1748501741781,5.7923,172.59,172.57,0.04352733]
[1748501744885,5.7924,172.58,172.57,0.04352733]
[1748501760301,32.26099701,172.59,172.47,29.04]
[1748501760605,3.22099701,172.54,172.47,31.0991]
[1748501760998,5.7943,172.53,172.49,5.7954]
[1748501761397,5.83475441,172.53,172.49,5.83442453]
[1748501761796,0.04045441,172.53,172.49,5.83442453]
[1748501762001,0.04045441,172.53,172.49,0.03902453]
[1748501763208,0.04045441,172.53,172.52,5.7944]
[1748501763811,0.04045441,172.53,172.51,5.7946]
[1748501766904,0.04045441,172.53,172.52,5.7944]
[1748501768613,0.04045441,172.53,172.51,5.7946]
[1748501768807,0.04045441,172.53,172.49,0.03902453]
[1748501770013,0.04045441,172.53,172.5,5.795]
[1748501770410,0.04045441,172.53,172.49,0.03902453]
[1748501770814,0.04045441,172.53,172.51,5.7945]
[1748501772519,0.04045441,172.53,172.52,5.7944]
[1748501780420,3.22099701,172.59,172.5,3.22099701]
[1748501780718,34.8126,172.58,172.51,3.9267]
[1748501781322,34.8126,172.58,172.55,5.7932]
[1748501781622,34.85184859,172.58,172.55,5.83268444]
[1748501785825,9.01379701,172.57,172.55,0.03948444]
[1748501786227,5.7931,172.56,172.55,0.03948444]
[1748501788327,5.7938,172.54,172.47,31.0991]
[1748501788526,38.03479701,172.54,172.47,31.0991]
[1748501788727,38.03479701,172.54,172.47,2.0591]
[1748501788928,38.03479701,172.54,172.5,5.795]
[1748501789124,38.07909204,172.54,172.5,5.83344659]
[1748501791531,5.7941,172.53,172.5,5.83344659]
[1748501796735,38.07909204,172.54,172.5,0.03844659]
[1748501797136,38.07909204,172.54,172.51,5.7945]
[1748501799328,38.07909204,172.54,172.52,5.7944]
[1748501799738,38.07909204,172.54,172.51,5.7946]
[1748501799942,32.28529204,172.54,172.5,0.03844659]
[1748501800136,29.06429503,172.54,172.5,0.03844659]
[1748501800440,29.06429503,172.54,172.52,5.7942]
[1748501801941,29.06429503,172.54,172.51,5.7946]
[1748501803042,29.06429503,172.54,172.51,5.7947]
[1748501804942,34.85809503,172.54,172.51,5.7947]
[1748501812452,29.06429503,172.54,172.51,5.7947]
[1748501813147,29.06429503,172.54,172.52,5.7944]
[1748501813447,0.04429503,172.54,172.5,0.03844659]
[1748501814454,0.04429503,172.54,172.53,5.7941]
[1748501814753,0.04429503,172.54,172.5,0.03844659]
[1748501814950,0.04429503,172.54,172.52,5.7942]
[1748501815352,0.04429503,172.54,172.5,0.03844659]
[1748501815554,0.04429503,172.54,172.51,5.7946]
[1748501815754,0.04429503,172.54,172.5,0.03844659]
[1748501816760,0.04429503,172.54,172.51,5.7947]
[1748501817159,0.04429503,172.54,172.5,0.03844659]
[1748501818059,5.83829503,172.54,172.5,5.83354659]
[1748501819658,5.7941,172.53,172.5,0.03844659]
[1748501820968,5.7944,172.52,172.5,0.03844659]
[1748501823264,37.99519701,172.53,172.5,0.03844659]
[1748501823961,37.99519701,172.53,172.5,5.83344659]
[1748501827667,37.99519701,172.53,172.5,0.03844659]
[1748501829169,37.99519701,172.53,172.5,5.83344659]
[1748501831368,37.99519701,172.53,172.5,0.03844659]
[1748501832072,32.20099701,172.53,172.5,5.83344659]
[1748501833871,37.99509701,172.53,172.5,5.83344659]
[1748501840079,32.20099701,172.53,172.5,0.03844659]
[1748501840771,5.7947,172.52,172.5,0.03844659]
[1748501841576,37.99519701,172.53,172.5,0.03844659]
[1748501841875,28.98,172.53,172.5,0.03844659]
[1748501842883,28.98,172.53,172.51,5.7945]
[1748501845879,28.98,172.53,172.52,5.7944]
[1748501846078,0.04429503,172.54,172.5,0.03844659]
[1748501847080,0.04429503,172.54,172.53,5.7941]
[1748501854097,0.04429503,172.54,172.5,0.03844659]
[1748501854389,3.22099701,172.52,172.5,0.03844659]
[1748501854776,32.18099701,172.52,172.5,0.03844659]
[1748501855386,5.7947,172.51,172.5,0.03844659]
[1748501855881,37.97549701,172.52,172.5,0.03844659]
[1748501856490,5.7947,172.51,172.5,0.03844659]
[1748501858592,5.7953,172.5,172.42,28.96]
[1748501858991,5.7953,172.5,172.46,5.7961]
[1748501859488,5.83368495,172.5,172.46,5.83632967]
[1748501859685,5.7956,172.49,172.46,0.04022967]